fUST/lending_fUST_20240830
["ID","MTS","AMOUNT","RATE_DAILY","PERIOD"]
[336579853,1724953857861,-500.0,0.00021095,2]
[336579854,1724953857870,-500.0,0.00021095,2]
[336579855,1724953857879,-2794.98,0.00021095,2]
[336579856,1724953857888,-438.97496012,0.00021095,2]
[336579857,1724953857898,-670.56,0.00021095,2]
[336579858,1724953857908,-335.19,0.00021095,2]
[336579859,1724953857917,-614.16,0.00021095,2]
[336579860,1724953857926,-500.0,0.00021095,2]
[336579861,1724953857935,-500.0,0.00021095,2]
[336579862,1724953857944,-1272.21,0.00021095,2]
[336579863,1724953857954,-414.69538424,0.00021095,2]
[336579864,1724953857963,-8890.63,0.00021095,2]
[336579865,1724953857972,-1123.71,0.00021095,2]
[336579866,1724953857982,-700.88,0.00021095,2]
[336579867,1724953857992,-500.0,0.00021095,2]
[336579868,1724953858001,-1084.73,0.00021095,2]
[336579869,1724953858010,-500.0,0.00021095,2]
[336579870,1724953858019,-500.0,0.00021095,2]
[336579871,1724953858028,-500.0,0.00021095,2]
[336579872,1724953858037,-500.0,0.00021095,2]
[336579873,1724953858046,-500.0,0.00021095,2]
[336579874,1724953858056,-500.0,0.00021095,2]
[336579875,1724953858066,-500.0,0.00021095,2]
[336579876,1724953858075,-189.66675346,0.00021095,2]
[336579877,1724953858084,-500.0,0.00021095,2]
[336579878,1724953858094,-500.0,0.00021095,2]
[336579879,1724953858103,-500.0,0.00021095,2]
[336579880,1724953858113,-500.0,0.00021095,2]
[336579881,1724953858121,-1486.91,0.00021095,2]
[336579882,1724953858131,-3834.66,0.00021095,2]
[336579883,1724953858142,-500.0,0.00021095,2]
[336579884,1724953858153,-500.0,0.00021095,2]
[336579885,1724953858163,-614.08,0.00021095,2]
[336579886,1724953858172,-500.0,0.00021095,2]
[336579887,1724953858181,-500.0,0.00021095,2]
[336579888,1724953858190,-500.0,0.00021095,2]
[336579889,1724953858199,-500.0,0.00021095,2]
[336579890,1724953858208,-453.50239903,0.000212,4]
[336579891,1724953858218,-1500.0,0.00021219,2]
[336579892,1724953858228,-151.0,0.00021359,2]
[336579893,1724953858238,-151.0,0.00021359,2]
[336579894,1724953858248,-151.0,0.00021359,2]
[336579895,1724953858259,-151.0,0.00021369,2]
[336579896,1724953858269,-500.0,0.00021369,2]
[336579897,1724953858278,-500.0,0.00021369,2]
[336579898,1724953858287,-313.84,0.00021369,2]
[336579899,1724953858298,-500.0,0.00021369,2]
[336579900,1724953858308,-151.0,0.00021369,2]
[336579901,1724953858317,-500.0,0.00021369,2]
[336579902,1724953858401,-500.0,0.00021369,2]
[336579903,1724953858410,-500.0,0.00021369,2]
[336579904,1724953858420,-500.0,0.00021369,2]
[336579905,1724953858429,-500.0,0.00021369,2]
[336579906,1724953858438,-500.0,0.00021369,2]
[336579907,1724953858447,-500.0,0.00021369,2]
[336579908,1724953858457,-500.0,0.00021369,2]
[336579909,1724953858467,-500.0,0.00021369,2]
[336579910,1724953858477,-500.0,0.00021369,2]
[336579911,1724953858486,-500.0,0.00021369,2]
[336579912,1724953858497,-500.0,0.00021369,2]
[336579913,1724953858508,-500.0,0.00021369,2]
[336579914,1724953858520,-893.81,0.00021369,2]
[336579915,1724953858529,-602.51814581,0.00021369,2]
[336579916,1724953858540,-500.0,0.00021369,2]
[336579917,1724953858550,-500.0,0.00021369,2]
[336579918,1724953858561,-294.72725278,0.00021369,2]
[336579919,1724953858570,-500.0,0.00021369,2]
[336579920,1724953858580,-298.98773062,0.00021369,2]
[336579921,1724953858592,-500.0,0.00021369,2]
[336579923,1724953858602,-500.0,0.00021369,2]
[336579924,1724953858611,-500.0,0.00021369,2]
[336579926,1724953858621,-500.0,0.00021369,2]
[336579928,1724953858630,-500.0,0.00021369,2]
[336579929,1724953858641,-500.0,0.00021369,2]
[336579931,1724953858651,-500.0,0.00021369,2]
[336579933,1724953858662,-500.0,0.00021369,2]
[336579935,1724953858671,-500.0,0.00021369,2]
[336579936,1724953858680,-500.0,0.00021369,2]
[336579938,1724953858690,-500.0,0.00021369,2]
[336579940,1724953858699,-500.0,0.00021369,2]
[336579942,1724953858708,-500.0,0.00021369,2]
[336579944,1724953858719,-500.0,0.00021369,2]
[336579946,1724953858729,-500.0,0.00021369,2]
[336579948,1724953858738,-586.6338314,0.00021369,2]
[336579950,1724953858748,-500.0,0.00021369,2]
[336579952,1724953858757,-500.0,0.00021369,2]
[336579954,1724953858767,-500.0,0.00021369,2]
[336579956,1724953858776,-500.0,0.00021369,2]
[336579958,1724953858786,-500.0,0.00021369,2]
[336579959,1724953858795,-1032.68,0.00021369,2]
[336579961,1724953858805,-500.0,0.00021369,2]
[336579964,1724953858822,-500.0,0.00021369,2]
[336579965,1724953858831,-500.0,0.00021369,2]
[336579968,1724953858840,-1081.6,0.00021369,2]
[336579970,1724953858850,-657.8,0.00021369,2]
[336579972,1724953858859,-500.0,0.00021369,2]
[336579974,1724953858868,-885.79,0.00021369,2]
[336579976,1724953858878,-500.0,0.00021369,2]
[336579978,1724953858888,-500.0,0.00021369,2]
[336579980,1724953858897,-989.3,0.00021369,2]
[336579982,1724953858909,-648.8326523,0.00021369,2]
[336579984,1724953858919,-500.0,0.00021369,2]
[336579986,1724953858931,-500.0,0.00021369,2]
[336579988,1724953858943,-500.0,0.00021369,2]
[336579990,1724953858954,-500.0,0.00021369,2]
[336579993,1724953858965,-500.0,0.00021369,2]
[336579995,1724953858974,-2104.61,0.00021369,2]
[336579996,1724953858983,-500.0,0.00021369,2]
[336579997,1724953858992,-500.0,0.00021369,2]
[336579998,1724953859004,-500.0,0.00021369,2]
[336579999,1724953859014,-2794.98,0.00021369,2]
[336580000,1724953859023,-670.56,0.00021369,2]
[336580001,1724953859033,-295.95295,0.00021369,2]
[336580002,1724953859042,-335.19,0.00021369,2]
[336580003,1724953859051,-295.95295,0.00021369,2]
[336580004,1724953859066,-151.0,0.00021369,2]
[336580005,1724953859075,-614.16,0.00021369,2]
[336580006,1724953859084,-390.673162,0.00021369,2]
[336580007,1724953859093,-390.673162,0.00021369,2]
[336580008,1724953859104,-151.0,0.00021369,2]
[336580009,1724953859114,-211.557206,0.00021369,2]
[336580010,1724953859124,-500.0,0.00021369,2]
[336580011,1724953859134,-151.0,0.00021369,2]
[336580012,1724953859143,-500.0,0.00021369,2]
[336580013,1724953859153,-1272.21,0.00021369,2]
[336580014,1724953859163,-151.0,0.00021369,2]
[336580015,1724953859172,-8890.63,0.00021369,2]
[336580016,1724953859181,-1123.71,0.00021369,2]
[336580017,1724953859191,-151.0,0.00021369,2]
[336580018,1724953859199,-700.88,0.00021369,2]
[336580019,1724953859209,-500.0,0.00021369,2]
[336580020,1724953859219,-1084.73,0.00021369,2]
[336580021,1724953859230,-500.0,0.00021369,2]
[336580022,1724953859239,-500.0,0.00021369,2]
[336580023,1724953859248,-500.0,0.00021369,2]
[336580024,1724953859258,-500.0,0.00021369,2]
[336580025,1724953859269,-500.0,0.00021369,2]
[336580026,1724953859278,-500.0,0.00021369,2]
[336580027,1724953859287,-323.03016514,0.00021369,2]
[336580028,1724953859297,-500.0,0.00021369,2]
[336580029,1724953859308,-500.0,0.00021369,2]
[336580030,1724953859319,-220.974109,0.00021369,2]
[336580031,1724953859331,-220.974109,0.00021369,2]
[336580032,1724953859341,-500.0,0.00021369,2]
[336580033,1724953859352,-151.0,0.00021369,2]
[336580034,1724953859362,-1486.91,0.00021369,2]
[336580035,1724953859372,-151.0,0.00021369,2]
[336580036,1724953859381,-500.0,0.00021369,2]
[336580037,1724953859391,-151.0,0.00021369,2]
[336580038,1724953859401,-3834.66,0.00021369,2]
[336580039,1724953859411,-213.90932357,0.00021369,2]
[336580040,1724953859421,-500.0,0.00021369,2]
[336580041,1724953859430,-614.08,0.00021369,2]
[336580042,1724953859441,-500.0,0.00021369,2]
[336580044,1724953859452,-151.0,0.00021369,2]
[336580046,1724953859462,-500.0,0.00021369,2]
[336580048,1724953859472,-500.0,0.00021369,2]
[336580050,1724953859481,-173.40636,0.00021369,2]
[336580052,1724953859491,-500.0,0.00021369,2]
[336580054,1724953859500,-173.40636,0.00021369,2]
[336580055,1724953859510,-453.50239903,0.000214,4]
[336580058,1724953859520,-453.50239903,0.000216,4]
[336580060,1724953859530,-500.0,0.00021643,2]
[336580062,1724953859539,-500.0,0.00021643,2]
[336580064,1724953859549,-500.0,0.00021643,2]
[336580066,1724953859560,-500.0,0.00021643,2]
[336580068,1724953859570,-500.0,0.00021643,2]
[336580070,1724953859580,-500.0,0.00021643,2]
[336580072,1724953859590,-500.0,0.00021643,2]
[336580074,1724953859599,-153.442841,0.00021643,2]
[336580076,1724953859609,-153.442841,0.00021643,2]
[336580078,1724953859618,-500.0,0.00021643,2]
[336580080,1724953859627,-270.42322559,0.00021643,2]
[336580082,1724953859637,-500.0,0.00021643,2]
[336580084,1724953859646,-500.0,0.00021643,2]
[336580086,1724953859655,-500.0,0.00021643,2]
[336580088,1724953859664,-500.0,0.00021643,2]
[336580090,1724953859674,-500.0,0.00021643,2]
[336580092,1724953859682,-500.0,0.00021643,2]
[336580094,1724953859692,-500.0,0.00021643,2]
[336580096,1724953859703,-893.81,0.00021643,2]
[336580098,1724953859713,-500.0,0.00021643,2]
[336580100,1724953859722,-500.0,0.00021643,2]
[336580101,1724953859731,-401.71393681,0.00021643,2]
[336580103,1724953859741,-500.0,0.00021643,2]
[336580105,1724953859751,-321.023874,0.00021643,2]
[336580107,1724953859763,-500.0,0.00021643,2]
[336580109,1724953859773,-500.0,0.00021643,2]
[336580111,1724953859782,-500.0,0.00021643,2]
[336580113,1724953859791,-382.73,0.00021643,2]
[336580115,1724953859801,-500.0,0.00021643,2]
[336580123,1724953859881,-500.0,0.00021643,2]
[336580125,1724953859892,-500.0,0.00021643,2]
[336580127,1724953859902,-500.0,0.00021643,2]
[336580129,1724953859912,-500.0,0.00021643,2]
[336580130,1724953859921,-500.0,0.00021643,2]
[336580132,1724953859931,-500.0,0.00021643,2]
[336580134,1724953859940,-551.97551872,0.00021643,2]
[336580136,1724953859949,-469.6264844,0.00021643,2]
[336580138,1724953859958,-500.0,0.00021643,2]
[336580139,1724953859967,-500.0,0.00021643,2]
[336580140,1724953859976,-500.0,0.00021643,2]
[336580142,1724953859986,-500.0,0.00021643,2]
[336580143,1724953859995,-500.0,0.00021643,2]
[336580144,1724953860014,-1032.68,0.00021643,2]
[336580145,1724953860027,-500.0,0.00021643,2]
[336580146,1724953860038,-500.0,0.00021643,2]
[336580147,1724953860048,-151.0,0.00021643,2]
[336580148,1724953860059,-233.83942,0.00021643,2]
[336580149,1724953860069,-217.56,0.00021643,2]
[336580150,1724953860078,-1081.6,0.00021643,2]
[336580151,1724953860088,-657.8,0.00021643,2]
[336580152,1724953860098,-500.0,0.00021643,2]
[336580153,1724953860107,-885.79,0.00021643,2]
[336580154,1724953860117,-162.046306,0.00021643,2]
[336580155,1724953860127,-500.0,0.00021643,2]
[336580156,1724953860136,-500.0,0.00021643,2]
[336580157,1724953860146,-151.0,0.00021643,2]
[336580158,1724953860156,-989.3,0.00021643,2]
[336580159,1724953860166,-151.0,0.00021643,2]
[336580160,1724953860176,-500.0,0.00021643,2]
[336580161,1724953860186,-500.0,0.00021643,2]
[336580162,1724953860196,-500.0,0.00021643,2]
[336580163,1724953860205,-290.95627432,0.00021643,2]
[336580164,1724953860216,-500.0,0.00021643,2]
[336580165,1724953860227,-251.5,0.00021643,2]
[336580166,1724953860236,-2104.61,0.00021643,2]
[336580167,1724953860246,-500.0,0.00021643,2]
[336580168,1724953860256,-500.0,0.00021643,2]
[336580169,1724953860266,-2794.98,0.00021643,2]
[336580170,1724953860276,-670.56,0.00021643,2]
[336580171,1724953860285,-335.19,0.00021643,2]
[336580172,1724953860298,-614.16,0.00021643,2]
[336580173,1724953860310,-216.06863023,0.00021643,2]
[336580174,1724953860341,-283.93136977,0.00021643,2]
[336580176,1724953860350,-500.0,0.00021643,2]
[336580178,1724953860360,-1272.21,0.00021643,2]
[336580180,1724953860370,-1149.7737774,0.00021643,2]
[336580182,1724953860382,-801.22760462,0.00021643,2]
[336580196,1724953860512,-500.0,0.00019178,2]
[336580198,1724953860522,-684.24,0.00019178,2]
[336580200,1724953860532,-500.0,0.00019452,2]
[336580202,1724953860543,-684.24,0.00019452,2]
[336580204,1724953860554,-500.0,0.00019726,2]
[336580208,1724953860577,-684.24,0.00019726,2]
[336580211,1724953860599,-684.24,0.0002,2]
[336580214,1724953860621,-684.24,0.00020273,2]
[336580217,1724953860639,-684.24,0.00020547,2]
[336580220,1724953860659,-684.24,0.00020821,2]
[336580223,1724953860678,-961.34206326,0.00021643,2]
[336580227,1724953860709,-4990.42410835,0.00021643,2]
[336580546,1724954066245,354.598309,0.00014247,2]
[336580548,1724954177671,500.0,0.00016625,2]
[336580549,1724954198760,181.78360486,0.00015794,2]
[336580550,1724954467204,250.0,0.00016903,2]
[336580551,1724954467377,250.0,0.00016949,2]
[336580552,1724954467617,250.0,0.00016995,2]
[336580553,1724954712454,587.791946,0.00014247,2]
[336580560,1724954765355,451.2325419,0.00016559,2]
[336580561,1724954888712,205.35970468,0.00016942,2]
[336580562,1724954925528,2317.02246527,0.00016559,2]
[336580563,1724954936273,500.0,0.000163,2]
[336580564,1724954936889,500.0,0.000163,2]
[336580565,1724954938087,500.0,0.000163,2]
[336580566,1724954938288,500.0,0.000163,2]
[336580567,1724954938655,500.0,0.000163,2]
[336580568,1724954939423,500.0,0.000163,2]
[336580569,1724954939839,500.0,0.000163,2]
[336580570,1724954940266,500.0,0.000163,2]
[336580571,1724954940613,500.0,0.000163,2]
[336580572,1724954941025,500.0,0.000163,2]
[336580573,1724954941390,500.0,0.000163,2]
[336580574,1724954942284,500.0,0.000163,2]
[336580575,1724954942667,500.0,0.000163,2]
[336580576,1724954943062,500.0,0.000163,2]
[336580577,1724954943495,402.03378319,0.000163,2]
[336580578,1724954955317,-776.66173673,0.00016559,2]
[336580579,1724954955339,-250.0,0.00017042,2]
[336580580,1724954955364,-207.4305018,0.00017047,2]
[336580581,1724954955534,-250.0,0.00017088,2]
[336580582,1724954955560,-479.8067841,0.00017116,2]
[336580583,1724954955583,-250.0,0.00017134,2]
[336580584,1724954955610,-250.0,0.00017181,2]
[336580585,1724954955632,-250.0,0.00017227,2]
[336580635,1724955032531,-250.0,0.00017273,2]
[336580636,1724955032542,-250.0,0.0001732,2]
[336580637,1724955032556,-250.0,0.00017366,2]
[336580640,1724955032569,-250.0,0.00017413,2]
[336580642,1724955032580,-250.0,0.00017459,2]
[336580643,1724955032591,-500.0,0.000175,2]
[336580645,1724955032602,-500.0,0.000175,2]
[336580648,1724955032614,-250.0,0.00017505,2]
[336580649,1724955032628,-250.0,0.00017552,2]
[336580651,1724955032641,-250.0,0.00017598,2]
[336580653,1724955032656,-250.0,0.00017644,2]
[336580655,1724955032669,-300.0,0.0001769,2]
[336580658,1724955032681,-300.0,0.0001769,2]
[336580660,1724955032692,-250.0,0.00017691,2]
[336580662,1724955032704,-250.0,0.00017737,2]
[336580664,1724955032715,-250.0,0.00017783,2]
[336580666,1724955032726,-500.0,0.00018375,2]
[336580668,1724955032740,-265.35251781,0.00018788,2]
[336580671,1724955032752,-289.58765765,0.00018788,2]
[336580673,1724955032763,-307.18300307,0.00018788,2]
[336580675,1724955032774,-1774.2844075,0.00018789,2]
[336580677,1724955032786,-250.0,0.00018789,2]
[336580679,1724955032798,-24900.0,0.00018789,2]
[336580682,1724955032809,-2090.99522887,0.00018812,2]
[336580684,1724955032819,-172.807702,0.00018912,2]
[336580686,1724955032831,-172.370213,0.00018912,2]
[336580688,1724955032842,-173.605556,0.00018912,2]
[336580690,1724955032853,-172.370212,0.00018912,2]
[336580692,1724955032863,-294.993761,0.00018912,2]
[336580695,1724955032874,-154.521689,0.00018912,2]
[336580697,1724955032885,-232.60348847,0.00019073,2]
[336580699,1724955032896,-232.60348847,0.00019074,2]
[336580701,1724955032907,-232.60348847,0.00019076,2]
[336580703,1724955032918,-1952.78044744,0.00019076,2]
[336580707,1724955032940,-232.60348847,0.00019077,2]
[336580709,1724955032955,-232.60348847,0.00019078,2]
[336580712,1724955032970,-6306.55310658,0.00019078,2]
[336581013,1724955039041,-923.91373066,0.00019078,2]
[336581029,1724955040571,-179.896002,0.00018308,2]
[336581030,1724955040582,-179.896002,0.00018358,2]
[336581031,1724955040592,-179.896002,0.00018408,2]
[336581032,1724955040602,-248.1258115,0.00019078,2]
[336581035,1724955040748,-22635.7672093,0.00019078,2]
[336581036,1724955040757,-172.370213,0.00019148,2]
[336581037,1724955040767,-500.0,0.00019167,2]
[336581038,1724955040777,-500.0,0.00019167,2]
[336581039,1724955040786,-500.0,0.00019167,2]
[336581040,1724955040796,-443.40141561,0.00019167,2]
[336581041,1724955040806,-19313.05238027,0.00019168,2]
[336581042,1724955040818,-1363.80029486,0.00019168,2]
[336581043,1724955040830,-10470.649875,0.00019168,2]
[336581065,1724955043602,-179.896002,0.00018458,2]
[336581066,1724955043613,-179.896002,0.00018509,2]
[336581067,1724955043624,-179.896002,0.00018559,2]
[336581068,1724955043636,-179.896002,0.00018609,2]
[336581069,1724955043646,-179.896002,0.00018659,2]
[336581070,1724955043656,-179.896002,0.00018709,2]
[336581071,1724955043666,-179.896002,0.0001876,2]
[336581072,1724955043679,-179.896002,0.0001881,2]
[336581073,1724955043690,-179.896002,0.0001886,2]
[336581074,1724955043701,-179.896002,0.0001891,2]
[336581075,1724955043711,-179.896002,0.00018961,2]
[336581077,1724955043722,-179.896002,0.00019011,2]
[336581078,1724955043732,-2831.67208435,0.00019168,2]
[336581103,1724955046655,-179.896002,0.00019061,2]
[336581105,1724955046666,-179.896002,0.00019111,2]
[336581106,1724955046676,-179.896002,0.00019161,2]
[336581108,1724955046686,-62.011994,0.00019168,2]
[336581750,1724955784105,558.402348,0.00014247,2]
[336581754,1724956002143,-190.82872472,0.00018025,2]
[336581755,1724956046552,10000.0,0.000165,2]
[336581757,1724956097884,396.62089423,0.000123,2]
[336581758,1724956121651,12904.26793549,0.00014,2]
[336581759,1724956122138,410.42681097,0.0001,2]
[336581809,1724956232622,-3503.68037715,0.000167,2]
[336581810,1724956232633,-300.0,0.00016999,2]
[336581811,1724956232642,-300.0,0.00016999,2]
[336581812,1724956232652,-17419.48109455,0.00017,2]
[336581813,1724956232662,-1138.6948031,0.00017,40]
[336581814,1724956232672,-1993.45867273,0.000176,2]
[336581815,1724956232682,-250.0,0.00017734,2]
[336581816,1724956232692,-157.409001,0.0001774,2]
[336581817,1724956232702,-157.409001,0.00017801,2]
[336581818,1724956232712,-157.409001,0.00017863,2]
[336581820,1724956232722,-157.409001,0.00017925,2]
[336581821,1724956232731,-157.409001,0.00017986,2]
[336581822,1724956232741,-157.409001,0.00018048,2]
[336581823,1724956232753,-157.409001,0.0001811,2]
[336581824,1724956232763,-157.409001,0.00018171,2]
[336581826,1724956232773,-157.409001,0.00018233,2]
[336581828,1724956232782,-157.409001,0.00018294,2]
[336581829,1724956232791,-157.409001,0.00018356,2]
[336581830,1724956232802,-1829.62082527,0.00018379,2]
[336581831,1724956232811,-157.409001,0.00018418,2]
[336581832,1724956232822,-1523.23032256,0.00018447,2]
[336581833,1724956232834,-5960.0,0.00018447,2]
[336581841,1724956239084,-8491.90079889,0.00018447,2]
[336581842,1724956239094,-157.409001,0.00018479,2]
[336581843,1724956239104,-420.63073967,0.000185,2]
[336581844,1724956239115,-420.63073965,0.000185,2]
[336581845,1724956239125,-157.409001,0.00018541,2]
[336581846,1724956239134,-157.409001,0.00018602,2]
[336581847,1724956239144,-157.409001,0.00018664,2]
[336581848,1724956239154,-420.0,0.00018699,2]
[336581849,1724956239164,-4353.0514959,0.000187,2]
[336581850,1724956239174,-420.63073965,0.0001873,2]
[336581851,1724956239184,-24900.0,0.00018789,2]
[336581852,1724956239194,-600.0,0.00018868,2]
[336581853,1724956239203,-172.370213,0.00018912,2]
[336581854,1724956239213,-348.803016,0.00018912,2]
[336581855,1724956239222,-293.52158,0.00018912,2]
[336581856,1724956239232,-173.605557,0.00018912,2]
[336581857,1724956239241,-172.370212,0.00018912,2]
[336581858,1724956239251,-174.13746,0.00018912,2]
[336581859,1724956239261,-220.60021427,0.00018982,2]
[336581860,1724956239270,-4399.76018103,0.00019,2]
[336581861,1724956239280,-573.25905762,0.00019,2]
[336581862,1724956239290,-500.0,0.00019,2]
[336581863,1724956239300,-220.60021427,0.00019006,2]
[336581864,1724956239309,-220.60021427,0.0001903,2]
[336581865,1724956239319,-220.60021427,0.00019054,2]
[336581866,1724956239332,-220.60021427,0.00019078,2]
[336581867,1724956239342,-3539.0207055,0.00019078,2]
[336581868,1724956239352,-348.803016,0.00019148,2]
[336581869,1724956239362,-293.52158,0.00019148,2]
[336581870,1724956239371,-500.0,0.00019166,2]
[336581871,1724956239381,-500.0,0.00019166,2]
[336581872,1724956239390,-500.0,0.00019166,2]
[336581873,1724956239400,-443.40141561,0.00019166,2]
[336581874,1724956239410,-209.1116594,0.00019168,5]
[336581875,1724956239419,-88264.471592,0.00019168,2]
[336581876,1724956239429,-500.0,0.00019173,2]
[336581877,1724956239439,-500.0,0.00019178,2]
[336581878,1724956239448,-500.0,0.00019178,2]
[336581879,1724956239458,-500.0,0.00019178,2]
[336581880,1724956239468,-501.05844802,0.00019178,2]
[336581881,1724956239477,-614.03486254,0.00019178,2]
[336581882,1724956239487,-500.0,0.00019178,2]
[336581883,1724956239497,-500.0,0.00019178,2]
[336581884,1724956239506,-500.0,0.00019178,2]
[336581885,1724956239516,-503.0344077,0.00019178,2]
[336581886,1724956239528,-500.0,0.00019178,2]
[336581887,1724956239538,-500.0,0.00019178,2]
[336581888,1724956239550,-502.86614356,0.00019178,2]
[336581889,1724956239562,-500.0,0.00019178,2]
[336581891,1724956239574,-500.0,0.00019178,2]
[336581893,1724956239584,-500.0,0.00019178,2]
[336581895,1724956239593,-500.0,0.00019178,2]
[336581897,1724956239603,-500.0,0.00019178,2]
[336581899,1724956239612,-500.0,0.00019178,2]
[336581901,1724956239621,-301.73253605,0.00019178,2]
[336581902,1724956239631,-500.0,0.00019178,2]
[336581904,1724956239641,-500.0,0.00019178,2]
[336581906,1724956239652,-500.0,0.00019178,2]
[336581908,1724956239663,-223.46,0.00019178,2]
[336581909,1724956239672,-553.76525082,0.00019178,2]
[336581910,1724956239682,-500.0,0.00019178,2]
[336581911,1724956239691,-500.0,0.00019178,2]
[336581912,1724956239701,-612.45287567,0.00019178,2]
[336581913,1724956239710,-292.38855938,0.00019178,2]
[336581914,1724956239720,-501.31917051,0.00019178,2]
[336581915,1724956239730,-525.06269598,0.00019178,2]
[336581916,1724956239739,-500.84794612,0.00019178,2]
[336581917,1724956239749,-500.0,0.00019178,2]
[336581918,1724956239759,-433.82839045,0.00019178,2]
[336581919,1724956239769,-501.16684777,0.00019178,2]
[336581920,1724956239779,-500.0,0.00019178,2]
[336581921,1724956239789,-500.0,0.00019178,2]
[336581922,1724956239798,-205.16415173,0.00019178,2]
[336581923,1724956239807,-500.0,0.00019178,2]
[336581924,1724956239818,-500.0,0.00019178,2]
[336581925,1724956239829,-500.0,0.00019178,2]
[336581926,1724956239840,-500.0,0.00019178,2]
[336581927,1724956239850,-500.0,0.00019178,2]
[336581928,1724956239860,-500.0,0.00019178,2]
[336581929,1724956239870,-500.0,0.00019178,2]
[336581930,1724956239879,-500.0,0.00019178,2]
[336581931,1724956239889,-500.0,0.00019178,2]
[336581932,1724956239899,-506.28641808,0.00019178,2]
[336581933,1724956239908,-159.3620808,0.00019178,2]
[336581934,1724956239918,-500.0,0.00019178,2]
[336581935,1724956239928,-500.0,0.00019178,2]
[336581936,1724956239937,-502.64694305,0.00019178,2]
[336581937,1724956239948,-500.0,0.00019178,2]
[336581938,1724956239958,-500.0,0.00019178,2]
[336581939,1724956239967,-500.56889513,0.00019178,2]
[336581940,1724956239977,-500.0,0.00019178,2]
[336581941,1724956239988,-500.0,0.00019178,2]
[336581942,1724956240128,-500.0,0.00019178,2]
[336581943,1724956240141,-500.0,0.00019178,2]
[336581944,1724956240152,-500.0,0.00019178,2]
[336581945,1724956240161,-500.0,0.00019178,2]
[336581946,1724956240172,-500.0,0.00019178,2]
[336581947,1724956240182,-500.0,0.00019178,2]
[336581948,1724956240192,-500.0,0.00019178,2]
[336581949,1724956240202,-500.0,0.00019178,2]
[336581950,1724956240211,-500.0,0.00019178,2]
[336581951,1724956240221,-500.0,0.00019178,2]
[336581952,1724956240231,-500.0,0.00019178,2]
[336581954,1724956240243,-500.0,0.00019178,2]
[336581956,1724956240253,-500.0,0.00019178,2]
[336581958,1724956240262,-500.0,0.00019178,2]
[336581959,1724956240272,-500.0,0.00019178,2]
[336581960,1724956240282,-500.0,0.00019178,2]
[336581961,1724956240292,-501.95849392,0.00019178,2]
[336581962,1724956240301,-500.0,0.00019178,2]
[336581963,1724956240311,-500.0,0.00019178,2]
[336581964,1724956240321,-500.0,0.00019178,2]
[336581965,1724956240333,-500.0,0.00019178,2]
[336581966,1724956240344,-500.0,0.00019178,2]
[336581967,1724956240354,-500.0,0.00019178,2]
[336581968,1724956240363,-500.0,0.00019178,2]
[336581969,1724956240373,-500.0,0.00019178,2]
[336581970,1724956240383,-500.0,0.00019178,2]
[336581971,1724956240392,-500.0,0.00019178,2]
[336581972,1724956240402,-500.0,0.00019178,2]